[Event "Early-Titled-Tuesday-Blitz-October-17-2023"]
[Site "Chess.com"]
[Date "2023.10.17"]
[Round "4"]
[White "YouJustFoundYourGodfather"]
[Black "Shivananda1964"]
[Result "1-0"]
[WhiteElo "2607"]
[BlackElo "2395"]
[TimeControl "180+1"]
[EndTime "8:39:45 PDT"]
[Termination "YouJustFoundYourGodfather won on time"]

1. c4 {[%clk 0:02:56.9]} 1... e5 {[%clk 0:02:59.4]} 2. Nf3 {[%clk 0:02:56.5]}
2... Nc6 {[%clk 0:02:57.1]} 3. d3 {[%clk 0:02:55.6]} 3... Nf6 {[%clk 0:02:55.2]}
4. g3 {[%clk 0:02:56.1]} 4... Bb4+ {[%clk 0:02:53.2]} 5. Nbd2 {[%clk 0:02:55.8]}
5... O-O {[%clk 0:02:51.9]} 6. Bg2 {[%clk 0:02:56.4]} 6... d6 {[%clk 0:02:48.9]}
7. O-O {[%clk 0:02:56.5]} 7... Bxd2 {[%clk 0:02:46.5]} 8. Bxd2 {[%clk
0:02:57.4]} 8... a5 {[%clk 0:02:44.2]} 9. Bc3 {[%clk 0:02:57]} 9... h6 {[%clk
0:02:43.8]} 10. b3 {[%clk 0:02:54.8]} 10... Qe7 {[%clk 0:02:44.3]} 11. Re1
{[%clk 0:02:52.7]} 11... Re8 {[%clk 0:02:43.1]} 12. Qc2 {[%clk 0:02:52.5]} 12...
Bd7 {[%clk 0:02:42.6]} 13. a3 {[%clk 0:02:52.4]} 13... Bg4 {[%clk 0:02:34.9]}
14. e3 {[%clk 0:02:50.1]} 14... Nd7 {[%clk 0:02:28.8]} 15. Nd2 {[%clk
0:02:45.8]} 15... Bf5 {[%clk 0:02:26.6]} 16. b4 {[%clk 0:02:44.6]} 16... axb4
{[%clk 0:02:20.9]} 17. axb4 {[%clk 0:02:45.5]} 17... Rxa1 {[%clk 0:02:17.4]} 18.
Rxa1 {[%clk 0:02:46.4]} 18... Nb6 {[%clk 0:02:09.5]} 19. b5 {[%clk 0:02:36.1]}
19... Nd8 {[%clk 0:02:05.1]} 20. Ra7 {[%clk 0:02:32.9]} 20... Nc8 {[%clk
0:02:04.2]} 21. Ra8 {[%clk 0:02:27.3]} 21... Nb6 {[%clk 0:01:59.4]} 22. Ra7
{[%clk 0:02:25.4]} 22... Nc8 {[%clk 0:01:58.5]} 23. Ra2 {[%clk 0:02:25.9]} 23...
Nb6 {[%clk 0:01:42.4]} 24. Bb4 {[%clk 0:02:24.1]} 24... Nd7 {[%clk 0:01:14.2]}
25. Ra7 {[%clk 0:02:20]} 25... Nc5 {[%clk 0:00:59.7]} 26. Bxc5 {[%clk
0:02:19.6]} 26... dxc5 {[%clk 0:00:59.7]} 27. Bxb7 {[%clk 0:02:20]} 27... Nxb7
{[%clk 0:00:58]} 28. Rxb7 {[%clk 0:02:20.9]} 28... Qd6 {[%clk 0:00:50.3]} 29.
Ne4 {[%clk 0:02:21]} 29... Bxe4 {[%clk 0:00:48.3]} 30. dxe4 {[%clk 0:02:21.9]}
30... Ra8 {[%clk 0:00:45.8]} 31. Qb1 {[%clk 0:02:09.3]} 31... Ra4 {[%clk
0:00:32.2]} 32. Qb3 {[%clk 0:01:58.5]} 32... Rb4 {[%clk 0:00:19.5]} 33. Qc2
{[%clk 0:01:57.4]} 33... Qe6 {[%clk 0:00:05.7]} 34. Rxc7 {[%clk 0:01:57.3]}
34... Rxc4 {[%clk 0:00:05.8]} 35. Qd1 {[%clk 0:01:53.4]} 35... Rb4 {[%clk
0:00:02.7]} 36. Rxc5 {[%clk 0:01:52.2]} 1-0

[Event "Early-Titled-Tuesday-Blitz-October-17-2023"]
[Site "Chess.com"]
[Date "2023.10.17"]
[Round "4"]
[White "Happy1712Drummer"]
[Black "Ermito2020"]
[Result "0-1"]
[WhiteElo "2382"]
[BlackElo "2594"]
[TimeControl "180+1"]
[EndTime "8:39:52 PDT"]
[Termination "Ermito2020 won on time"]

1. e4 {[%clk 0:03:00.9]} 1... e6 {[%clk 0:03:00.1]} 2. d4 {[%clk 0:03:00.4]}
2... d5 {[%clk 0:03:01]} 3. e5 {[%clk 0:03:00.5]} 3... c5 {[%clk 0:03:01]} 4. c3
{[%clk 0:03:00.5]} 4... Qb6 {[%clk 0:03:01.7]} 5. Nf3 {[%clk 0:02:59.6]} 5...
Nc6 {[%clk 0:03:02.3]} 6. Bd3 {[%clk 0:02:55.5]} 6... Bd7 {[%clk 0:03:01]} 7.
O-O {[%clk 0:02:55.3]} 7... Nh6 {[%clk 0:02:58.4]} 8. dxc5 {[%clk 0:02:45.7]}
8... Bxc5 {[%clk 0:02:58]} 9. b4 {[%clk 0:02:41.6]} 9... Be7 {[%clk 0:02:40]}
10. Nbd2 {[%clk 0:02:23.7]} 10... Ng4 {[%clk 0:02:37.6]} 11. Qe2 {[%clk
0:02:04.7]} 11... f6 {[%clk 0:02:36.7]} 12. exf6 {[%clk 0:01:57.5]} 12... Bxf6
{[%clk 0:02:36.9]} 13. Bb2 {[%clk 0:01:58.3]} 13... O-O {[%clk 0:02:31.3]} 14.
Nb3 {[%clk 0:01:58.2]} 14... e5 {[%clk 0:02:24.5]} 15. Nc5 {[%clk 0:01:41.2]}
15... Bc8 {[%clk 0:02:24.5]} 16. Bc2 {[%clk 0:01:22.3]} 16... e4 {[%clk
0:02:23.8]} 17. Nd2 {[%clk 0:01:20.7]} 17... Qc7 {[%clk 0:02:17.5]} 18. g3
{[%clk 0:01:17.7]} 18... b6 {[%clk 0:02:16.2]} 19. Ncb3 {[%clk 0:01:16.4]} 19...
Nge5 {[%clk 0:02:16.8]} 20. b5 {[%clk 0:01:03.7]} 20... Bg4 {[%clk 0:02:00.3]}
21. Qe3 {[%clk 0:00:53.9]} 21... Nf3+ {[%clk 0:01:41]} 22. Nxf3 {[%clk
0:00:52.5]} 22... Bxf3 {[%clk 0:01:41.9]} 23. bxc6 {[%clk 0:00:42.3]} 23... Qc8
{[%clk 0:01:41.8]} 24. Nd2 {[%clk 0:00:40.1]} 24... Bg5 {[%clk 0:01:38.9]} 25.
Qxg5 {[%clk 0:00:27.7]} 25... Qh3 {[%clk 0:01:38.1]} 26. Nxf3 {[%clk 0:00:28]}
26... exf3 {[%clk 0:01:38.1]} 27. Bxh7+ {[%clk 0:00:23.2]} 27... Kh8 {[%clk
0:01:30.1]} 0-1

[Event "Early-Titled-Tuesday-Blitz-October-17-2023"]
[Site "Chess.com"]
[Date "2023.10.17"]
[Round "4"]
[White "gmcorrales"]
[Black "JiaHaoxiang"]
[Result "1-0"]
[WhiteElo "2884"]
[BlackElo "2579"]
[TimeControl "180+1"]
[EndTime "8:39:59 PDT"]
[Termination "gmcorrales won by resignation"]

1. e4 {[%clk 0:03:00.1]} 1... c5 {[%clk 0:02:59.6]} 2. Nf3 {[%clk 0:02:58.6]}
2... d6 {[%clk 0:03:00.1]} 3. d4 {[%clk 0:02:58.6]} 3... cxd4 {[%clk 0:03:01]}
4. Nxd4 {[%clk 0:02:59.3]} 4... Nf6 {[%clk 0:03:01.4]} 5. Nc3 {[%clk 0:02:59.6]}
5... g6 {[%clk 0:03:02]} 6. Be3 {[%clk 0:02:57.9]} 6... Bg7 {[%clk 0:03:02.6]}
7. f3 {[%clk 0:02:58.3]} 7... O-O {[%clk 0:03:02.4]} 8. Qd2 {[%clk 0:02:58.8]}
8... Nc6 {[%clk 0:03:02.9]} 9. Bc4 {[%clk 0:02:58.8]} 9... Bd7 {[%clk 0:03:03]}
10. O-O-O {[%clk 0:02:58.4]} 10... Rc8 {[%clk 0:03:03.4]} 11. Bb3 {[%clk
0:02:57.5]} 11... Ne5 {[%clk 0:03:03]} 12. Kb1 {[%clk 0:02:57.3]} 12... Nc4
{[%clk 0:03:03.2]} 13. Bxc4 {[%clk 0:02:57.4]} 13... Rxc4 {[%clk 0:03:04.1]} 14.
g4 {[%clk 0:02:50.2]} 14... b5 {[%clk 0:03:04.2]} 15. h4 {[%clk 0:02:40.7]}
15... b4 {[%clk 0:02:58.2]} 16. Nce2 {[%clk 0:02:38]} 16... Qa5 {[%clk
0:02:46.6]} 17. h5 {[%clk 0:02:33.4]} 17... Rfc8 {[%clk 0:02:44.7]} 18. h6
{[%clk 0:02:29.6]} 18... Bh8 {[%clk 0:02:44.3]} 19. g5 {[%clk 0:02:28.6]} 19...
Nh5 {[%clk 0:02:33.3]} 20. Rc1 {[%clk 0:02:26]} 20... d5 {[%clk 0:02:24.3]} 21.
Nb3 {[%clk 0:02:25.6]} 21... Qb5 {[%clk 0:02:08]} 22. Qxd5 {[%clk 0:02:23.4]}
22... Qxd5 {[%clk 0:02:07.7]} 23. exd5 {[%clk 0:02:24.3]} 23... Ba4 {[%clk
0:01:58.6]} 24. Bxa7 {[%clk 0:02:13.5]} 24... Nf4 {[%clk 0:01:48.8]} 25. Nxf4
{[%clk 0:02:11.9]} 25... Rxf4 {[%clk 0:01:46.2]} 26. Rhe1 {[%clk 0:02:12.4]}
26... Re8 {[%clk 0:01:37.4]} 27. Bc5 {[%clk 0:02:09.8]} 27... Rf5 {[%clk
0:01:30.4]} 28. Bxe7 {[%clk 0:02:06.9]} 28... Rxd5 {[%clk 0:01:30.3]} 29. f4
{[%clk 0:02:01.7]} 29... Rf5 {[%clk 0:01:26.9]} 30. Bd6 {[%clk 0:01:38.6]} 30...
f6 {[%clk 0:01:27]} 31. Nc5 {[%clk 0:01:36.8]} 31... Bb5 {[%clk 0:01:24.4]} 32.
Rxe8+ {[%clk 0:01:14.9]} 32... Bxe8 {[%clk 0:01:25.3]} 33. Re1 {[%clk
0:01:15.2]} 33... Bf7 {[%clk 0:01:23.5]} 34. Ne4 {[%clk 0:01:05.5]} 34... fxg5
{[%clk 0:01:16.2]} 35. Nxg5 {[%clk 0:01:06.4]} 35... Bf6 {[%clk 0:01:13.6]} 36.
b3 {[%clk 0:01:01.9]} 36... Bxg5 {[%clk 0:01:11.6]} 37. fxg5 {[%clk 0:01:02.8]}
37... Rxg5 {[%clk 0:01:11.5]} 38. Bxb4 {[%clk 0:01:02]} 38... Bd5 {[%clk
0:01:05.1]} 39. Re7 {[%clk 0:01:00.6]} 39... Rh5 {[%clk 0:01:01.5]} 40. Rg7+
{[%clk 0:01:00.6]} 40... Kh8 {[%clk 0:01:01.9]} 41. Bc3 {[%clk 0:01:00.7]} 41...
Rh3 {[%clk 0:00:59.9]} 42. Kb2 {[%clk 0:00:58.9]} 1-0

[Event "Early-Titled-Tuesday-Blitz-October-17-2023"]
[Site "Chess.com"]
[Date "2023.10.17"]
[Round "4"]
[White "Kirill_Klukin"]
[Black "Ural_bogatyr"]
[Result "1-0"]
[WhiteElo "2678"]
[BlackElo "2517"]
[TimeControl "180+1"]
[EndTime "8:40:01 PDT"]
[Termination "Kirill_Klukin won by resignation"]

1. d4 {[%clk 0:02:56.8]} 1... Nf6 {[%clk 0:02:59.7]} 2. Nf3 {[%clk 0:02:56.3]}
2... d5 {[%clk 0:02:59.5]} 3. c4 {[%clk 0:02:56.5]} 3... e6 {[%clk 0:02:59.6]}
4. Bg5 {[%clk 0:02:55.9]} 4... Be7 {[%clk 0:02:56.3]} 5. Nc3 {[%clk 0:02:55.6]}
5... O-O {[%clk 0:02:55.3]} 6. e3 {[%clk 0:02:55.9]} 6... c5 {[%clk 0:02:51.2]}
7. cxd5 {[%clk 0:02:55.8]} 7... cxd4 {[%clk 0:02:43.1]} 8. Nxd4 {[%clk
0:02:42.9]} 8... Nxd5 {[%clk 0:02:38]} 9. Bxe7 {[%clk 0:02:42.6]} 9... Qxe7
{[%clk 0:02:34.9]} 10. Nxd5 {[%clk 0:02:41.9]} 10... exd5 {[%clk 0:02:35.8]} 11.
Be2 {[%clk 0:02:42.1]} 11... Nc6 {[%clk 0:02:34.7]} 12. O-O {[%clk 0:02:42.3]}
12... Be6 {[%clk 0:02:31.2]} 13. Rc1 {[%clk 0:02:41.9]} 13... Rac8 {[%clk
0:02:28.6]} 14. Qd2 {[%clk 0:02:39.3]} 14... Rfd8 {[%clk 0:02:27.3]} 15. h3
{[%clk 0:02:39.2]} 15... h6 {[%clk 0:02:27]} 16. Rfd1 {[%clk 0:02:38.3]} 16...
Ne5 {[%clk 0:02:21.9]} 17. b3 {[%clk 0:02:33.6]} 17... a6 {[%clk 0:02:14.4]} 18.
Rxc8 {[%clk 0:02:06.3]} 18... Rxc8 {[%clk 0:02:14.2]} 19. Rc1 {[%clk 0:02:06.9]}
19... Rc5 {[%clk 0:02:05.4]} 20. f4 {[%clk 0:01:38.3]} 20... Nc6 {[%clk
0:01:42.2]} 21. Nxc6 {[%clk 0:01:37.6]} 21... Rxc6 {[%clk 0:01:13.7]} 22. Rxc6
{[%clk 0:01:35.2]} 22... bxc6 {[%clk 0:01:14.6]} 23. Bxa6 {[%clk 0:01:35.2]}
23... Qc5 {[%clk 0:01:11.6]} 24. Be2 {[%clk 0:01:33.2]} 24... Bf5 {[%clk
0:01:03.6]} 25. a4 {[%clk 0:01:21.8]} 25... Bc2 {[%clk 0:00:53.2]} 26. b4 {[%clk
0:01:12.5]} 26... Qa7 {[%clk 0:00:47.6]} 27. Qxc2 {[%clk 0:01:08.1]} 27... Qxe3+
{[%clk 0:00:48.2]} 28. Kh1 {[%clk 0:01:08.5]} 28... Qxf4 {[%clk 0:00:47.8]} 29.
b5 {[%clk 0:01:02.3]} 29... cxb5 {[%clk 0:00:40.4]} 30. axb5 {[%clk 0:01:03.2]}
30... f5 {[%clk 0:00:38.2]} 31. Bf3 {[%clk 0:01:01.5]} 31... Qb4 {[%clk
0:00:31.6]} 1-0

[Event "Early-Titled-Tuesday-Blitz-October-17-2023"]
[Site "Chess.com"]
[Date "2023.10.17"]
[Round "4"]
[White "SaqoChess_Twitch"]
[Black "JoliyRoger"]
[Result "1-0"]
[WhiteElo "2621"]
[BlackElo "2459"]
[TimeControl "180+1"]
[EndTime "8:40:04 PDT"]
[Termination "SaqoChess_Twitch won on time"]

1. d4 {[%clk 0:03:00.9]} 1... Nf6 {[%clk 0:02:57]} 2. c4 {[%clk 0:03:00.9]} 2...
e6 {[%clk 0:02:57.7]} 3. Nc3 {[%clk 0:03:01.4]} 3... Bb4 {[%clk 0:02:57.4]} 4.
e3 {[%clk 0:03:02]} 4... c5 {[%clk 0:02:57.8]} 5. a3 {[%clk 0:03:02.3]} 5...
Bxc3+ {[%clk 0:02:57.3]} 6. bxc3 {[%clk 0:03:03.2]} 6... Nc6 {[%clk 0:02:57.8]}
7. Bd3 {[%clk 0:03:03.8]} 7... b6 {[%clk 0:02:58]} 8. Ne2 {[%clk 0:03:04.3]}
8... d6 {[%clk 0:02:58.7]} 9. O-O {[%clk 0:03:04.8]} 9... e5 {[%clk 0:02:55.8]}
10. d5 {[%clk 0:03:05.1]} 10... Na5 {[%clk 0:02:52.2]} 11. Ng3 {[%clk 0:03:05]}
11... Ba6 {[%clk 0:02:52.9]} 12. f4 {[%clk 0:03:04.7]} 12... g6 {[%clk
0:02:05.8]} 13. e4 {[%clk 0:02:58.7]} 13... Nd7 {[%clk 0:01:54.7]} 14. f5 {[%clk
0:02:46]} 14... Qe7 {[%clk 0:01:45.6]} 15. f6 {[%clk 0:02:40.2]} 15... Qf8
{[%clk 0:01:23.4]} 16. Rb1 {[%clk 0:02:40.1]} 16... O-O-O {[%clk 0:01:20.9]} 17.
Rb5 {[%clk 0:02:40.3]} 17... Bxb5 {[%clk 0:01:13.6]} 18. cxb5 {[%clk 0:02:40.5]}
18... c4 {[%clk 0:01:13]} 19. Be2 {[%clk 0:02:39.4]} 19... Kb8 {[%clk
0:01:08.8]} 20. a4 {[%clk 0:02:30.6]} 20... Kb7 {[%clk 0:00:58.8]} 21. Ba3
{[%clk 0:02:30.8]} 21... Rc8 {[%clk 0:00:54.4]} 22. Bb4 {[%clk 0:02:30.7]} 22...
Nb3 {[%clk 0:00:50.1]} 23. Bxc4 {[%clk 0:02:26.9]} 23... Rxc4 {[%clk 0:00:45.6]}
24. Qxb3 {[%clk 0:02:27.2]} 24... Rc7 {[%clk 0:00:45.6]} 25. a5 {[%clk
0:02:27.2]} 25... bxa5 {[%clk 0:00:27.6]} 26. Bxa5 {[%clk 0:02:26.1]} 26... Rc8
{[%clk 0:00:28.2]} 27. Bb4 {[%clk 0:02:24.4]} 27... Nc5 {[%clk 0:00:25.7]} 28.
Qa3 {[%clk 0:02:24.7]} 28... Qd8 {[%clk 0:00:25.3]} 29. Ra1 {[%clk 0:02:24.3]}
29... Qb6 {[%clk 0:00:20.7]} 30. Kh1 {[%clk 0:02:23.8]} 30... h5 {[%clk
0:00:15.2]} 31. c4 {[%clk 0:02:23.8]} 31... h4 {[%clk 0:00:13.8]} 32. Ne2 {[%clk
0:02:20.1]} 32... Nxe4 {[%clk 0:00:13.3]} 33. h3 {[%clk 0:02:12.5]} 33... Rxc4
{[%clk 0:00:12.8]} 34. Ba5 {[%clk 0:02:03.1]} 34... Qxb5 {[%clk 0:00:13.2]} 35.
Qa2 {[%clk 0:01:58.4]} 35... Ka8 {[%clk 0:00:10.4]} 36. Be1 {[%clk 0:01:51.6]}
36... Qb7 {[%clk 0:00:07.7]} 37. Qxc4 {[%clk 0:01:51.2]} 37... Nxf6 {[%clk
0:00:05]} 38. Nc3 {[%clk 0:01:49.7]} 38... Rc8 {[%clk 0:00:05.4]} 39. Qxh4
{[%clk 0:01:49.7]} 39... Nd7 {[%clk 0:00:02.5]} 40. Qa4 {[%clk 0:01:49]} 40...
Nb6 {[%clk 0:00:02.4]} 41. Qa5 {[%clk 0:01:49.5]} 41... Nc4 {[%clk 0:00:01.4]}
42. Qa2 {[%clk 0:01:49]} 42... f5 {[%clk 0:00:01.2]} 43. Nb5 {[%clk 0:01:48.4]}
1-0

[Event "Early-Titled-Tuesday-Blitz-October-17-2023"]
[Site "Chess.com"]
[Date "2023.10.17"]
[Round "4"]
[White "garicradomir"]
[Black "CarlosjPineror"]
[Result "1-0"]
[WhiteElo "2315"]
[BlackElo "2486"]
[TimeControl "180+1"]
[EndTime "8:40:05 PDT"]
[Termination "garicradomir won by resignation"]

1. e4 {[%clk 0:03:00.9]} 1... c5 {[%clk 0:02:59.7]} 2. Nf3 {[%clk 0:03:00.3]}
2... e6 {[%clk 0:02:59.5]} 3. c3 {[%clk 0:03:00]} 3... Nf6 {[%clk 0:02:59.2]} 4.
e5 {[%clk 0:03:00.2]} 4... Nd5 {[%clk 0:02:59.7]} 5. c4 {[%clk 0:03:00.8]} 5...
Nb6 {[%clk 0:02:59.4]} 6. b4 {[%clk 0:03:00.7]} 6... d6 {[%clk 0:02:54.5]} 7.
exd6 {[%clk 0:02:57.4]} 7... Bxd6 {[%clk 0:02:55.1]} 8. d4 {[%clk 0:02:57.7]}
8... cxb4 {[%clk 0:01:04.3]} 9. c5 {[%clk 0:02:55.8]} 9... Nc6 {[%clk
0:01:05.2]} 10. Bd3 {[%clk 0:02:48.7]} 10... Nxd4 {[%clk 0:00:51.4]} 11. cxd6
{[%clk 0:02:45.5]} 11... Nxf3+ {[%clk 0:00:50.8]} 12. Qxf3 {[%clk 0:02:44]}
12... Qxd6 {[%clk 0:00:51.7]} 13. Bb2 {[%clk 0:02:34.9]} 13... O-O {[%clk
0:00:51.3]} 14. a4 {[%clk 0:02:15.1]} 14... Nd5 {[%clk 0:00:40.7]} 15. O-O
{[%clk 0:02:09.2]} 15... g6 {[%clk 0:00:37]} 16. Be4 {[%clk 0:01:59.4]} 16... f5
{[%clk 0:00:33.4]} 17. Bxd5 {[%clk 0:01:56.8]} 17... Qxd5 {[%clk 0:00:33.5]} 18.
Qxd5 {[%clk 0:01:50.9]} 18... exd5 {[%clk 0:00:34.4]} 19. Nd2 {[%clk 0:01:49.8]}
19... Be6 {[%clk 0:00:33.8]} 20. Nf3 {[%clk 0:01:41.4]} 20... Bf7 {[%clk
0:00:32.9]} 21. a5 {[%clk 0:01:40.8]} 21... b5 {[%clk 0:00:28.2]} 22. a6 {[%clk
0:01:35]} 22... Rac8 {[%clk 0:00:28]} 23. Nd4 {[%clk 0:01:33.1]} 23... Rfd8
{[%clk 0:00:18.9]} 24. Ra5 {[%clk 0:01:29.5]} 24... Rc4 {[%clk 0:00:17.4]} 25.
Rxb5 {[%clk 0:01:20.8]} 25... h6 {[%clk 0:00:15.7]} 26. h4 {[%clk 0:01:19.9]}
26... Rd6 {[%clk 0:00:14.9]} 27. Rb8+ {[%clk 0:01:15.9]} 27... Kh7 {[%clk
0:00:14.9]} 28. Rb7 {[%clk 0:01:16.2]} 28... Kg8 {[%clk 0:00:14.5]} 29. Rxa7
{[%clk 0:01:14.9]} 29... g5 {[%clk 0:00:14.8]} 30. Ra8+ {[%clk 0:01:11.8]} 30...
Be8 {[%clk 0:00:13.8]} 31. Rxe8+ {[%clk 0:01:11]} 31... Kf7 {[%clk 0:00:14.1]}
1-0

[Event "Early-Titled-Tuesday-Blitz-October-17-2023"]
[Site "Chess.com"]
[Date "2023.10.17"]
[Round "4"]
[White "Witty_Alien"]
[Black "arminmusovic"]
[Result "0-1"]
[WhiteElo "2247"]
[BlackElo "2487"]
[TimeControl "180+1"]
[EndTime "8:40:08 PDT"]
[Termination "arminmusovic won on time"]

1. e4 {[%clk 0:03:00.9]} 1... c6 {[%clk 0:02:56.5]} 2. d4 {[%clk 0:03:00.7]}
2... d5 {[%clk 0:02:56.6]} 3. Nd2 {[%clk 0:03:01.5]} 3... dxe4 {[%clk
0:02:56.8]} 4. Nxe4 {[%clk 0:03:02.4]} 4... Nf6 {[%clk 0:02:57.5]} 5. Ng5 {[%clk
0:02:59.9]} 5... h6 {[%clk 0:02:57.5]} 6. Nxf7 {[%clk 0:03:00.5]} 6... Kxf7
{[%clk 0:02:58.4]} 7. Nf3 {[%clk 0:03:01.1]} 7... e6 {[%clk 0:02:59.1]} 8. Bc4
{[%clk 0:03:01.3]} 8... Bd6 {[%clk 0:02:59.3]} 9. O-O {[%clk 0:03:01.8]} 9...
Re8 {[%clk 0:02:59.5]} 10. Re1 {[%clk 0:02:43.4]} 10... Nbd7 {[%clk 0:02:45.5]}
11. Nh4 {[%clk 0:02:32.5]} 11... Nd5 {[%clk 0:02:36.1]} 12. Qh5+ {[%clk
0:02:28.9]} 12... Kg8 {[%clk 0:02:34]} 13. Bxh6 {[%clk 0:02:19.4]} 13... Nf8
{[%clk 0:02:15.6]} 14. Bd3 {[%clk 0:01:01.6]} 14... gxh6 {[%clk 0:02:07.5]} 15.
Nf5 {[%clk 0:00:34.9]} 15... exf5 {[%clk 0:01:56.4]} 16. Rxe8 {[%clk 0:00:34.7]}
16... Qg5 {[%clk 0:01:56.4]} 17. Qf3 {[%clk 0:00:23.1]} 17... Nf6 {[%clk
0:01:42.5]} 18. Rd8 {[%clk 0:00:17.3]} 18... Bxh2+ {[%clk 0:01:34.2]} 19. Kf1
{[%clk 0:00:14.7]} 19... Nd5 {[%clk 0:01:24.9]} 20. Re8 {[%clk 0:00:03.7]} 20...
Nc7 {[%clk 0:01:17.5]} 21. Re2 {[%clk 0:00:02.9]} 21... Bd6 {[%clk 0:01:16.5]}
22. Rae1 {[%clk 0:00:02.6]} 22... Bd7 {[%clk 0:01:17.1]} 23. Bc4+ {[%clk
0:00:02.9]} 23... Kg7 {[%clk 0:01:13.6]} 24. g3 {[%clk 0:00:02.3]} 24... Re8
{[%clk 0:01:13.5]} 25. Rxe8 {[%clk 0:00:02.5]} 25... Nxe8 {[%clk 0:01:14.4]} 26.
d5 {[%clk 0:00:02.2]} 26... c5 {[%clk 0:01:14.5]} 27. b4 {[%clk 0:00:02.2]}
27... cxb4 {[%clk 0:01:13.6]} 28. Kg2 {[%clk 0:00:02.9]} 28... Ng6 {[%clk
0:01:10.8]} 29. Bd3 {[%clk 0:00:01.8]} 29... Nh4+ {[%clk 0:01:11]} 0-1

[Event "Early-Titled-Tuesday-Blitz-October-17-2023"]
[Site "Chess.com"]
[Date "2023.10.17"]
[Round "4"]
[White "Defenstrator"]
[Black "azikom"]
[Result "0-1"]
[WhiteElo "2403"]
[BlackElo "2625"]
[TimeControl "180+1"]
[EndTime "8:40:14 PDT"]
[Termination "azikom won by resignation"]

1. d4 {[%clk 0:03:00.4]} 1... d5 {[%clk 0:02:59.3]} 2. c4 {[%clk 0:02:53.3]}
2... c6 {[%clk 0:03:00.2]} 3. Nf3 {[%clk 0:02:50.9]} 3... Nf6 {[%clk 0:03:00]}
4. Ne5 {[%clk 0:02:50.9]} 4... Nbd7 {[%clk 0:02:58.3]} 5. Bf4 {[%clk 0:02:38.4]}
5... e6 {[%clk 0:02:57.6]} 6. Nc3 {[%clk 0:02:38.5]} 6... Bb4 {[%clk 0:02:57]}
7. e3 {[%clk 0:02:33.4]} 7... Ne4 {[%clk 0:02:55.4]} 8. Qc2 {[%clk 0:02:27.9]}
8... Qa5 {[%clk 0:02:55.3]} 9. Rc1 {[%clk 0:02:15.9]} 9... Qxa2 {[%clk
0:02:51.4]} 10. Bd3 {[%clk 0:01:52]} 10... Nxc3 {[%clk 0:02:49.8]} 11. bxc3
{[%clk 0:01:51.7]} 11... Qxc2 {[%clk 0:02:49.9]} 12. Rxc2 {[%clk 0:01:52.6]}
12... Be7 {[%clk 0:02:49.2]} 13. cxd5 {[%clk 0:01:50.2]} 13... exd5 {[%clk
0:02:47.7]} 14. c4 {[%clk 0:01:48.2]} 14... Nxe5 {[%clk 0:02:38.4]} 15. Bxe5
{[%clk 0:01:47]} 15... f6 {[%clk 0:02:39]} 16. Bg3 {[%clk 0:01:45.4]} 16... Be6
{[%clk 0:02:39.2]} 17. O-O {[%clk 0:01:40.5]} 17... dxc4 {[%clk 0:02:37.9]} 18.
Bxc4 {[%clk 0:01:41.2]} 18... Bxc4 {[%clk 0:02:38.5]} 19. Rxc4 {[%clk
0:01:41.9]} 19... Kd7 {[%clk 0:02:38]} 20. d5 {[%clk 0:01:36.9]} 20... Rhc8
{[%clk 0:02:33.5]} 21. d6 {[%clk 0:01:16.4]} 21... Bf8 {[%clk 0:02:32.2]} 22. e4
{[%clk 0:01:10.3]} 22... c5 {[%clk 0:02:31.4]} 23. f4 {[%clk 0:01:06.7]} 23...
b5 {[%clk 0:02:28.1]} 24. Rc2 {[%clk 0:01:03.1]} 24... Bxd6 {[%clk 0:02:26.4]}
25. e5 {[%clk 0:00:54.6]} 25... Be7 {[%clk 0:02:25.5]} 26. Rd2+ {[%clk
0:00:45.5]} 26... Kc6 {[%clk 0:02:25]} 27. f5 {[%clk 0:00:41.1]} 27... c4 {[%clk
0:02:21.7]} 28. e6 {[%clk 0:00:36.3]} 28... Rd8 {[%clk 0:02:19.2]} 29. Ra2
{[%clk 0:00:29.6]} 29... a5 {[%clk 0:02:18.6]} 30. Rc1 {[%clk 0:00:21.3]} 30...
a4 {[%clk 0:02:18.3]} 31. Be1 {[%clk 0:00:21.7]} 31... a3 {[%clk 0:02:17.9]} 32.
Bc3 {[%clk 0:00:19.7]} 32... Rd3 {[%clk 0:02:13.7]} 33. g4 {[%clk 0:00:17.9]}
33... b4 {[%clk 0:01:59.1]} 34. Bxb4 {[%clk 0:00:16.7]} 34... Bxb4 {[%clk
0:01:58.7]} 35. Rxc4+ {[%clk 0:00:17.2]} 35... Bc5+ {[%clk 0:01:59.1]} 36. Kg2
{[%clk 0:00:18.1]} 36... Rb3 {[%clk 0:01:51.6]} 37. e7 {[%clk 0:00:15]} 37...
Rb2+ {[%clk 0:01:40.3]} 38. Rxb2 {[%clk 0:00:12.8]} 38... axb2 {[%clk
0:01:41.2]} 0-1

[Event "Early-Titled-Tuesday-Blitz-October-17-2023"]
[Site "Chess.com"]
[Date "2023.10.17"]
[Round "4"]
[White "Wizard_97"]
[Black "eljanov"]
[Result "0-1"]
[WhiteElo "2577"]
[BlackElo "2865"]
[TimeControl "180+1"]
[EndTime "8:40:15 PDT"]
[Termination "eljanov won by resignation"]

1. e4 {[%clk 0:02:58]} 1... c6 {[%clk 0:02:59.7]} 2. d4 {[%clk 0:02:57.7]} 2...
d5 {[%clk 0:03:00.1]} 3. Nd2 {[%clk 0:02:58]} 3... dxe4 {[%clk 0:03:00.1]} 4.
Nxe4 {[%clk 0:02:58.9]} 4... Nf6 {[%clk 0:03:00.8]} 5. Nxf6+ {[%clk 0:02:59]}
5... exf6 {[%clk 0:03:01.7]} 6. c3 {[%clk 0:02:59.2]} 6... Bd6 {[%clk
0:03:01.6]} 7. Bd3 {[%clk 0:02:59.9]} 7... O-O {[%clk 0:03:01.9]} 8. Ne2 {[%clk
0:03:00.5]} 8... Re8 {[%clk 0:03:02.2]} 9. O-O {[%clk 0:03:01.2]} 9... Nd7
{[%clk 0:03:01.5]} 10. Ng3 {[%clk 0:03:01.8]} 10... g6 {[%clk 0:03:00.6]} 11. f4
{[%clk 0:02:27]} 11... f5 {[%clk 0:02:57.8]} 12. b3 {[%clk 0:02:26.1]} 12... Nf6
{[%clk 0:02:55.6]} 13. Bb2 {[%clk 0:02:26]} 13... Ng4 {[%clk 0:02:52.3]} 14. Rf3
{[%clk 0:02:17.7]} 14... Qh4 {[%clk 0:02:13.8]} 15. Nf1 {[%clk 0:02:08.1]} 15...
c5 {[%clk 0:01:58]} 16. c4 {[%clk 0:01:38.9]} 16... cxd4 {[%clk 0:01:57.7]} 17.
Bxd4 {[%clk 0:01:39.8]} 17... Qe7 {[%clk 0:01:51.5]} 18. Qc2 {[%clk 0:00:57]}
18... Bc5 {[%clk 0:01:46.7]} 19. Bxc5 {[%clk 0:00:57.1]} 19... Qxc5+ {[%clk
0:01:46.9]} 20. Kh1 {[%clk 0:00:57.6]} 20... b6 {[%clk 0:01:44.1]} 21. h3 {[%clk
0:00:46.8]} 21... Nf6 {[%clk 0:01:43.5]} 22. Qf2 {[%clk 0:00:43.5]} 22... Bb7
{[%clk 0:01:37.7]} 23. Qxc5 {[%clk 0:00:41.6]} 23... bxc5 {[%clk 0:01:38.6]} 24.
Re3 {[%clk 0:00:37.4]} 24... Nh5 {[%clk 0:01:38.2]} 25. Kh2 {[%clk 0:00:12]}
25... Nxf4 {[%clk 0:01:35.5]} 26. Rg3 {[%clk 0:00:07.2]} 26... Rad8 {[%clk
0:01:32.9]} 27. Bc2 {[%clk 0:00:06.2]} 27... Re2 {[%clk 0:01:31.7]} 28. Rc1
{[%clk 0:00:06.5]} 28... Bxg2 {[%clk 0:01:28.1]} 29. Ne3 {[%clk 0:00:02.1]}
29... Rdd2 {[%clk 0:01:19.2]} 30. Nxg2 {[%clk 0:00:01]} 30... Nxg2 {[%clk
0:01:16.8]} 31. Rxg2 {[%clk 0:00:01.7]} 31... Rxg2+ {[%clk 0:01:16.6]} 32. Kh1
{[%clk 0:00:02.6]} 32... Rxc2 {[%clk 0:01:16.5]} 0-1